fUST/lending_fUST_20250805
["ID","MTS","AMOUNT","RATE_DAILY","PERIOD"]
[377328641,1754349043184,-460.0,0.00028215,2]
[377328642,1754349043193,-460.0,0.00028215,2]
[377328643,1754349043203,-460.0,0.00028215,2]
[377328644,1754349043213,-460.0,0.00028215,2]
[377328645,1754349043223,-460.0,0.00028215,2]
[377328646,1754349043234,-460.0,0.00028215,2]
[377328647,1754349043244,-460.0,0.00028218,2]
[377328648,1754349043254,-460.0,0.00028218,2]
[377328649,1754349043264,-451.04799738,0.00028218,2]
[377328650,1754349043273,-212.05139078,0.00028218,2]
[377328651,1754349043283,-460.0,0.00028218,2]
[377328652,1754349043294,-460.0,0.00028218,2]
[377328653,1754349043303,-460.0,0.00028218,2]
[377328654,1754349043312,-834.21,0.00028218,2]
[377328655,1754349043322,-460.0,0.00028218,2]
[377328656,1754349043333,-460.0,0.00028218,2]
[377328657,1754349043344,-460.0,0.00028218,2]
[377328658,1754349043353,-460.0,0.00028218,2]
[377328659,1754349043363,-460.0,0.00028218,2]
[377328660,1754349043372,-460.0,0.00028218,2]
[377328661,1754349043382,-460.0,0.00028219,2]
[377328662,1754349043391,-460.0,0.00028219,2]
[377328663,1754349043400,-864.81,0.00028219,2]
[377328664,1754349043409,-1473.55,0.00028219,2]
[377328665,1754349043418,-150.0,0.00028273,5]
[377328666,1754349043428,-500.0,0.00028273,5]
[377328667,1754349043437,-151.18,0.0002828,15]
[377328668,1754349043446,-173.9835747,0.00028314,2]
[377328669,1754349043455,-221.05960625,0.00028344,2]
[377328670,1754349043465,-506.46793973,0.00028344,2]
[377328671,1754349043475,-460.0,0.00028344,2]
[377328672,1754349043484,-460.0,0.00028344,2]
[377328673,1754349043493,-460.0,0.00028344,2]
[377328674,1754349043504,-460.0,0.00028344,2]
[377328675,1754349043514,-460.0,0.00028344,2]
[377328676,1754349043523,-516.50888162,0.00028344,2]
[377328677,1754349043533,-460.0,0.00028344,2]
[377328678,1754349043544,-460.0,0.00028344,2]
[377328679,1754349043554,-460.0,0.00028344,2]
[377328680,1754349043563,-460.0,0.00028344,2]
[377328681,1754349043574,-460.0,0.00028344,2]
[377328682,1754349043584,-460.0,0.00028344,2]
[377328683,1754349043594,-279.81385707,0.00028344,2]
[377328684,1754349043604,-460.0,0.00028344,2]
[377328685,1754349043614,-460.0,0.00028344,2]
[377328686,1754349043624,-460.0,0.00028344,2]
[377328687,1754349043633,-460.0,0.00028344,2]
[377328688,1754349043643,-719.88,0.00028344,2]
[377328689,1754349043653,-460.0,0.00028344,2]
[377328690,1754349043663,-460.0,0.00028344,2]
[377328691,1754349043674,-1971.14,0.00028344,2]
[377328692,1754349043684,-460.0,0.00028344,2]
[377328693,1754349043694,-527.25,0.00028344,2]
[377328694,1754349043704,-151.18,0.0002838,15]
[377328695,1754349043714,-354.40467927,0.00028383,2]
[377328696,1754349043724,-1859.32706996,0.00028387,2]
[377328697,1754349043735,-150.0,0.00028473,3]
[377328698,1754349043840,-151.18,0.0002848,15]
[377328699,1754349043850,-460.0,0.00028487,2]
[377328700,1754349043860,-460.0,0.00028487,2]
[377328701,1754349043871,-460.0,0.00028487,2]
[377328702,1754349043881,-268.68194583,0.00028487,2]
[377328703,1754349043891,-4036.0,0.00028487,2]
[377328704,1754349043900,-460.0,0.00028487,2]
[377328705,1754349043910,-460.0,0.00028487,2]
[377328706,1754349043919,-460.0,0.00028487,2]
[377328707,1754349043929,-460.0,0.00028487,2]
[377328708,1754349043939,-460.0,0.00028487,2]
[377328709,1754349043948,-460.0,0.00028487,2]
[377328710,1754349043959,-460.0,0.00028487,2]
[377328711,1754349043968,-460.0,0.00028487,2]
[377328712,1754349043978,-460.0,0.00028487,2]
[377328713,1754349043987,-460.0,0.00028487,2]
[377328714,1754349043997,-460.0,0.00028487,2]
[377328715,1754349044006,-460.0,0.00028487,2]
[377328716,1754349044017,-460.0,0.00028488,2]
[377328717,1754349044026,-460.0,0.00028488,2]
[377328718,1754349044036,-460.0,0.00028488,2]
[377328719,1754349044047,-460.0,0.00028488,2]
[377328720,1754349044057,-460.0,0.00028488,2]
[377328721,1754349044067,-460.0,0.00028488,2]
[377328722,1754349044079,-460.0,0.00028488,2]
[377328723,1754349044089,-460.0,0.00028488,2]
[377328724,1754349044099,-460.0,0.00028488,2]
[377328725,1754349044109,-460.0,0.00028488,2]
[377328726,1754349044118,-85.11767103,0.00028488,2]
[377328727,1754349044137,-153.40488687,0.00028488,2]
[377328728,1754349044147,-1285.38,0.00028488,2]
[377328729,1754349044157,-460.0,0.00028488,2]
[377328730,1754349044167,-460.0,0.00028488,2]
[377328731,1754349044176,-5126.6,0.00028488,2]
[377328732,1754349044186,-460.0,0.00028488,2]
[377328733,1754349044196,-232.3,0.00028488,2]
[377328734,1754349044206,-460.0,0.00028488,2]
[377328735,1754349044215,-460.0,0.00028488,2]
[377328736,1754349044225,-460.0,0.00028488,2]
[377328737,1754349044234,-460.0,0.00028488,2]
[377328738,1754349044244,-460.0,0.00028488,2]
[377328739,1754349044254,-511.64,0.00028488,2]
[377328740,1754349044264,-460.0,0.00028488,2]
[377328741,1754349044273,-460.0,0.00028488,2]
[377328742,1754349044283,-460.0,0.00028488,2]
[377328743,1754349044292,-553.89,0.00028488,2]
[377328745,1754349044302,-460.0,0.00028488,2]
[377328746,1754349044311,-460.0,0.00028488,2]
[377328747,1754349044320,-1212.27,0.00028488,2]
[377328748,1754349044330,-460.0,0.00028488,2]
[377328749,1754349044339,-460.0,0.00028488,2]
[377328750,1754349044349,-504.52,0.00028488,2]
[377328751,1754349044359,-460.0,0.00028488,2]
[377328752,1754349044369,-460.0,0.00028488,2]
[377328753,1754349044378,-279.65949218,0.00028488,2]
[377328754,1754349044619,-177.13190845,0.00027571,2]
[377328755,1754349044630,-177.13190843,0.0002766,2]
[377328756,1754349044639,-812.82,0.00027665,2]
[377328757,1754349044648,-50.42131162,0.00027666,2]
[377328758,1754349044660,-409.57868838,0.00027666,2]
[377328759,1754349044670,-177.13190843,0.0002775,2]
[377328760,1754349044680,-177.13190843,0.00027839,2]
[377328761,1754349044689,-812.82,0.00027939,2]
[377328762,1754349044698,-812.82,0.00028213,2]
[377328763,1754349044708,-1030.82,0.00028263,10]
[377328764,1754349044717,-812.82,0.00028487,2]
[377328765,1754349044727,-180.34050782,0.00028488,2]
[377328766,1754349044736,-460.0,0.00028488,2]
[377328767,1754349044746,-460.0,0.00028488,2]
[377328768,1754349044755,-460.0,0.00028488,2]
[377328769,1754349044765,-460.0,0.00028488,2]
[377328770,1754349044774,-460.0,0.00028488,2]
[377328771,1754349044783,-460.0,0.00028488,2]
[377328772,1754349044793,-460.0,0.00028488,2]
[377328773,1754349044803,-460.0,0.00028488,2]
[377328774,1754349044814,-460.0,0.00028488,2]
[377328775,1754349044825,-1036.64,0.00028488,2]
[377328776,1754349044835,-460.0,0.00028489,2]
[377328777,1754349044844,-460.0,0.00028489,2]
[377328778,1754349044853,-460.0,0.00028489,2]
[377328779,1754349044863,-460.0,0.00028489,2]
[377328780,1754349044875,-460.0,0.00028489,2]
[377328781,1754349044884,-460.0,0.00028489,2]
[377328782,1754349044894,-460.0,0.00028489,2]
[377328783,1754349044903,-460.0,0.00028489,2]
[377328784,1754349044913,-460.0,0.00028489,2]
[377328785,1754349044924,-460.0,0.00028489,2]
[377328786,1754349044933,-460.0,0.00028489,2]
[377328787,1754349044943,-323.87307705,0.00028489,2]
[377328788,1754349044952,-460.0,0.00028489,2]
[377328789,1754349044962,-460.0,0.00028489,2]
[377328790,1754349044972,-460.0,0.00028489,2]
[377328791,1754349044983,-460.0,0.00028489,2]
[377328792,1754349044992,-460.0,0.00028489,2]
[377328793,1754349045002,-984.11,0.00028489,2]
[377328794,1754349045012,-441.31,0.00028489,2]
[377328795,1754349045022,-460.0,0.00028489,2]
[377328796,1754349045032,-1979.3,0.00028489,2]
[377328797,1754349045042,-460.0,0.00028489,2]
[377328798,1754349045051,-460.0,0.00028489,2]
[377328799,1754349045061,-460.0,0.00028489,2]
[377328800,1754349045070,-460.0,0.00028489,2]
[377328801,1754349045079,-460.0,0.00028489,2]
[377328802,1754349045089,-460.0,0.00028489,2]
[377328803,1754349045098,-460.0,0.00028492,2]
[377328804,1754349045108,-529.86582371,0.00028492,2]
[377328805,1754349045117,-834.21,0.00028492,2]
[377328806,1754349045127,-460.0,0.00028492,2]
[377328807,1754349045136,-460.0,0.00028492,2]
[377328808,1754349045145,-569.1236699,0.00028492,2]
[377328809,1754349045155,-460.0,0.00028492,2]
[377328811,1754349045165,-460.0,0.00028492,2]
[377328813,1754349045174,-460.0,0.00028492,2]
[377328814,1754349045184,-460.0,0.00028493,2]
[377328816,1754349045193,-460.0,0.00028493,2]
[377328818,1754349045203,-864.81,0.00028493,2]
[377328820,1754349045213,-1473.55,0.00028493,2]
[377328822,1754349045222,-1000.0,0.00028521,5]
[377328824,1754349045233,-151.18,0.0002858,15]
[377328825,1754349045243,-460.0,0.00028618,2]
[377328826,1754349045252,-460.0,0.00028618,2]
[377328827,1754349045262,-460.0,0.00028618,2]
[377328829,1754349045272,-460.0,0.00028618,2]
[377328831,1754349045281,-460.0,0.00028618,2]
[377328833,1754349045291,-460.0,0.00028618,2]
[377328835,1754349045300,-460.0,0.00028618,2]
[377328836,1754349045309,-460.0,0.00028618,2]
[377328838,1754349045319,-460.0,0.00028618,2]
[377328840,1754349045329,-460.0,0.00028618,2]
[377328842,1754349045338,-460.0,0.00028618,2]
[377328843,1754349045347,-460.0,0.00028618,2]
[377328845,1754349045357,-460.0,0.00028618,2]
[377328847,1754349045367,-719.88,0.00028618,2]
[377328848,1754349045377,-460.0,0.00028618,2]
[377328849,1754349045386,-460.0,0.00028618,2]
[377328851,1754349045395,-1971.14,0.00028618,2]
[377328853,1754349045405,-551.14055573,0.00028618,2]
[377328855,1754349045414,-527.25,0.00028618,2]
[377328857,1754349045424,-260.0,0.00028677,2]
[377328859,1754349045433,-151.18,0.0002868,15]
[377328861,1754349045443,-151.0,0.00028686,7]
[377328863,1754349045453,-151.0,0.00028686,2]
[377328865,1754349045464,-151.0,0.00028686,2]
[377328867,1754349045474,-151.0,0.00028686,2]
[377328869,1754349045484,-151.0,0.00028686,2]
[377328872,1754349045493,-151.0,0.00028686,2]
[377328875,1754349045503,-151.0,0.00028686,2]
[377328878,1754349045512,-151.0,0.00028686,2]
[377328881,1754349045521,-151.0,0.00028686,2]
[377328883,1754349045532,-151.0,0.00028686,2]
[377328885,1754349045542,-151.0,0.00028686,2]
[377328887,1754349045553,-151.0,0.00028686,2]
[377328889,1754349045562,-2183.31810187,0.00028686,2]
[377328891,1754349045572,-151.0,0.00028686,2]
[377328893,1754349045583,-151.0,0.00028686,2]
[377328895,1754349045593,-151.0,0.00028686,2]
[377328897,1754349045603,-151.0,0.00028686,2]
[377328899,1754349045613,-151.0,0.00028686,2]
[377328901,1754349045622,-151.0,0.00028686,2]
[377328903,1754349045631,-151.0,0.00028686,2]
[377328905,1754349045642,-151.0,0.00028686,2]
[377328907,1754349045651,-151.0,0.00028686,2]
[377328909,1754349045660,-151.0,0.00028686,2]
[377328911,1754349045670,-151.0,0.00028686,2]
[377328913,1754349045679,-151.0,0.00028686,2]
[377328915,1754349045689,-151.0,0.00028686,2]
[377328917,1754349045699,-151.0,0.00028686,2]
[377328919,1754349045710,-151.0,0.00028686,2]
[377328922,1754349045719,-151.0,0.00028686,2]
[377328924,1754349045730,-151.0,0.00028686,2]
[377328925,1754349045740,-300.0,0.00028686,2]
[377328928,1754349045750,-151.0,0.00028686,2]
[377328929,1754349045759,-151.0,0.00028686,2]
[377328932,1754349045770,-300.0,0.00028686,2]
[377328933,1754349045780,-151.0,0.00028686,2]
[377328935,1754349045790,-151.0,0.00028686,2]
[377328937,1754349045800,-300.0,0.00028686,2]
[377328940,1754349045810,-151.0,0.00028686,2]
[377328942,1754349045822,-151.0,0.00028686,2]
[377328944,1754349045836,-300.0,0.00028686,2]
[377328946,1754349045845,-151.0,0.00028686,2]
[377328948,1754349045855,-151.0,0.00028686,2]
[377328949,1754349045864,-300.0,0.00028686,2]
[377328952,1754349045878,-151.0,0.00028686,2]
[377328953,1754349045888,-151.0,0.00028686,2]
[377328955,1754349045897,-191.22352127,0.00028686,2]
[377328957,1754349045906,-151.0,0.00028686,2]
[377328960,1754349045917,-151.0,0.00028686,2]
[377328961,1754349045926,-151.0,0.00028686,2]
[377328963,1754349045935,-151.0,0.00028686,2]
[377328965,1754349045947,-151.0,0.00028686,2]
[377328967,1754349045956,-151.0,0.00028686,2]
[377328970,1754349045966,-300.0,0.00028686,2]
[377328971,1754349045975,-250.0,0.00028686,2]
[377328973,1754349045986,-300.0,0.00028686,2]
[377328975,1754349045995,-250.0,0.00028686,2]
[377328977,1754349046005,-300.0,0.00028686,2]
[377328983,1754349046107,-151.0,0.00028686,2]
[377328984,1754349046118,-250.0,0.00028686,2]
[377328985,1754349046128,-300.0,0.00028686,2]
[377328986,1754349046138,-151.0,0.00028686,2]
[377328987,1754349046147,-250.0,0.00028686,2]
[377328988,1754349046156,-300.0,0.00028686,2]
[377328989,1754349046166,-300.0,0.00028686,2]
[377328990,1754349046176,-151.0,0.00028686,2]
[377328991,1754349046186,-250.0,0.00028686,2]
[377328992,1754349046196,-300.0,0.00028686,2]
[377328993,1754349046205,-151.0,0.00028686,2]
[377328994,1754349046215,-250.0,0.00028686,2]
[377328995,1754349046224,-300.0,0.00028686,2]
[377328996,1754349046234,-151.0,0.00028686,2]
[377328997,1754349046243,-250.0,0.00028686,2]
[377328998,1754349046252,-300.0,0.00028686,2]
[377328999,1754349046262,-151.0,0.00028686,2]
[377329000,1754349046274,-250.0,0.00028686,2]
[377329001,1754349046290,-300.0,0.00028686,2]
[377329002,1754349046299,-151.0,0.00028686,2]
[377329003,1754349046310,-250.0,0.00028686,2]
[377329004,1754349046320,-300.0,0.00028686,2]
[377329005,1754349046329,-151.0,0.00028686,2]
[377329006,1754349046339,-300.0,0.00028686,2]
[377329007,1754349046349,-250.0,0.00028686,2]
[377329008,1754349046359,-250.0,0.00028686,2]
[377329009,1754349046368,-250.0,0.00028686,2]
[377329010,1754349046377,-2264.10087164,0.00028741,2]
[377329011,1754349046386,-151.0,0.00028754,7]
[377329012,1754349046397,-151.0,0.00028754,7]
[377329013,1754349046406,-460.0,0.00028761,2]
[377329014,1754349046415,-460.0,0.00028761,2]
[377329015,1754349046425,-460.0,0.00028761,2]
[377329016,1754349046435,-4036.0,0.00028761,2]
[377329017,1754349046445,-404.23422925,0.00028761,2]
[377329018,1754349046456,-460.0,0.00028761,2]
[377329019,1754349046466,-523.69,0.00028761,2]
[377329020,1754349046476,-460.0,0.00028761,2]
[377329021,1754349046486,-460.0,0.00028761,2]
[377329022,1754349046497,-460.0,0.00028761,2]
[377329023,1754349046510,-460.0,0.00028761,2]
[377329024,1754349046520,-460.0,0.00028761,2]
[377329025,1754349046530,-460.0,0.00028761,2]
[377329026,1754349046540,-460.0,0.00028761,2]
[377329027,1754349046553,-460.0,0.00028761,2]
[377329028,1754349046562,-812.82,0.00028761,2]
[377329029,1754349046572,-460.0,0.00028762,2]
[377329030,1754349046581,-460.0,0.00028762,2]
[377329031,1754349046591,-460.0,0.00028762,2]
[377329032,1754349046604,-460.0,0.00028762,2]
[377329033,1754349046613,-460.0,0.00028762,2]
[377329034,1754349046623,-460.0,0.00028762,2]
[377329035,1754349046632,-460.0,0.00028762,2]
[377329036,1754349046642,-460.0,0.00028762,2]
[377329037,1754349046651,-460.0,0.00028762,2]
[377329038,1754349046662,-1285.38,0.00028762,2]
[377329039,1754349046672,-460.0,0.00028762,2]
[377329040,1754349046682,-606.26,0.00028762,2]
[377329041,1754349046691,-5126.6,0.00028762,2]
[377329042,1754349046701,-460.0,0.00028762,2]
[377329043,1754349046711,-460.0,0.00028762,2]
[377329044,1754349046722,-438.41414649,0.00028762,2]
[377329045,1754349046731,-180.9,0.00028762,2]
[377329046,1754349046741,-460.0,0.00028762,2]
[377329047,1754349046751,-460.0,0.00028762,2]
[377329048,1754349046761,-460.0,0.00028762,2]
[377329049,1754349046771,-460.0,0.00028762,2]
[377329050,1754349046781,-553.89,0.00028762,2]
[377329051,1754349046791,-460.0,0.00028762,2]
[377329052,1754349046800,-460.0,0.00028762,2]
[377329053,1754349046810,-460.0,0.00028762,2]
[377329054,1754349046819,-460.0,0.00028762,2]
[377329055,1754349046829,-1212.27,0.00028762,2]
[377329056,1754349046839,-460.0,0.00028762,2]
[377329057,1754349046848,-460.0,0.00028762,2]
[377329058,1754349046857,-460.0,0.00028762,2]
[377329059,1754349046867,-460.0,0.00028762,2]
[377329060,1754349046880,-460.0,0.00028762,2]
[377329061,1754349046890,-460.0,0.00028762,2]
[377329062,1754349046899,-460.0,0.00028762,2]
[377329063,1754349046908,-460.0,0.00028762,2]
[377329064,1754349046917,-460.0,0.00028762,2]
[377329065,1754349046927,-151.0,0.00028762,7]
[377329066,1754349046936,-460.0,0.00028762,2]
[377329067,1754349046946,-460.0,0.00028762,2]
[377329068,1754349046956,-460.0,0.00028762,2]
[377329069,1754349046965,-151.0,0.00028762,7]
[377329070,1754349046975,-1036.64,0.00028762,2]
[377329071,1754349046985,-460.0,0.00028763,2]
[377329072,1754349046995,-460.0,0.00028763,2]
[377329073,1754349047004,-460.0,0.00028763,2]
[377329074,1754349047014,-460.0,0.00028763,2]
[377329075,1754349047023,-460.0,0.00028763,2]
[377329076,1754349047033,-460.0,0.00028763,2]
[377329077,1754349047043,-314.07,0.00028763,2]
[377329078,1754349047053,-460.0,0.00028763,2]
[377329079,1754349047063,-460.0,0.00028763,2]
[377329080,1754349047072,-460.0,0.00028763,2]
[377329081,1754349047082,-460.0,0.00028763,2]
[377329082,1754349047092,-460.0,0.00028763,2]
[377329083,1754349047101,-460.0,0.00028763,2]
[377329084,1754349047111,-460.0,0.00028763,2]
[377329085,1754349047120,-460.0,0.00028763,2]
[377329086,1754349047130,-460.0,0.00028763,2]
[377329087,1754349047140,-984.11,0.00028763,2]
[377329088,1754349047149,-460.0,0.00028763,2]
[377329089,1754349047158,-1979.3,0.00028763,2]
[377329090,1754349047167,-460.0,0.00028763,2]
[377329091,1754349047177,-460.0,0.00028763,2]
[377329092,1754349047186,-460.0,0.00028763,2]
[377329093,1754349047196,-460.0,0.00028763,2]
[377329094,1754349047205,-460.0,0.00028763,2]
[377329095,1754349047215,-460.0,0.00028766,2]
[377329096,1754349047225,-834.21,0.00028766,2]
[377329098,1754349047235,-460.0,0.00028766,2]
[377329099,1754349047245,-460.0,0.00028766,2]
[377329100,1754349047255,-574.27607608,0.00028766,2]
[377329101,1754349047264,-529.64,0.00028766,2]
[377329102,1754349047273,-460.0,0.00028766,2]
[377329103,1754349047283,-460.0,0.00028767,2]
[377329105,1754349047292,-460.0,0.00028767,2]
[377329107,1754349047302,-864.81,0.00028767,2]
[377329108,1754349047311,-1473.55,0.00028767,2]
[377329109,1754349047320,-200.0,0.00028773,5]
[377329110,1754349047330,-420.0,0.00028776,2]
[377329111,1754349047340,-1680.0,0.00028777,2]
[377329112,1754349047349,-151.18,0.0002878,15]
[377329113,1754349047359,-2347.87260389,0.00028796,2]
[377329114,1754349047368,-300.0,0.00028821,5]
[377329115,1754349047378,-1004.52538243,0.00028838,2]
[377329116,1754349047388,-2434.74389024,0.00028851,2]
[377329117,1754349047398,-151.18,0.0002888,15]
[377329118,1754349047407,-460.0,0.00028892,2]
[377329119,1754349047417,-460.0,0.00028892,2]
[377329120,1754349047427,-460.0,0.00028892,2]
[377329121,1754349047436,-460.0,0.00028892,2]
[377329122,1754349047445,-460.0,0.00028892,2]
[377329123,1754349047455,-460.0,0.00028892,2]
[377329124,1754349047465,-460.0,0.00028892,2]
[377329125,1754349047476,-460.0,0.00028892,2]
[377329126,1754349047487,-460.0,0.00028892,2]
[377329127,1754349047496,-460.0,0.00028892,2]
[377329128,1754349047506,-460.0,0.00028892,2]
[377329130,1754349047515,-460.0,0.00028892,2]
[377329132,1754349047525,-719.88,0.00028892,2]
[377329133,1754349047534,-460.0,0.00028892,2]
[377329134,1754349047543,-460.0,0.00028892,2]
[377329135,1754349047553,-1971.14,0.00028892,2]
[377329136,1754349047562,-527.25,0.00028892,2]
[377329137,1754349047572,-1482.0,0.00028903,2]
[377329138,1754349047582,-2524.82941417,0.00028906,2]
[377329139,1754349047591,-354.40467927,0.00028924,2]
[377329140,1754349047601,-2618.2481025,0.00028961,2]
[377329141,1754349047610,-151.24,0.0002898,15]
[377329142,1754349047620,-205.92129424,0.00028996,2]
[377329143,1754349047630,-151.0,0.00029016,7]
[377329144,1754349047640,-2715.12328229,0.00029016,2]
[377329146,1754349047649,-460.0,0.00029035,2]
[377329147,1754349047660,-489.03,0.00029035,2]
[377329149,1754349047669,-460.0,0.00029035,2]
[377329151,1754349047679,-4036.0,0.00029035,2]
[377329153,1754349047688,-460.0,0.00029035,2]
[377329154,1754349047698,-460.0,0.00029035,2]
[377329156,1754349047707,-460.0,0.00029035,2]
[377329158,1754349047718,-596.33,0.00029035,2]
[377329160,1754349047727,-460.0,0.00029035,2]
[377329162,1754349047739,-460.0,0.00029035,2]
[377329164,1754349047749,-460.0,0.00029035,2]
[377329166,1754349047758,-460.0,0.00029035,2]
[377329167,1754349047768,-812.82,0.00029035,2]
[377329169,1754349047778,-460.0,0.00029036,2]
[377329171,1754349047788,-460.0,0.00029036,2]
[377329173,1754349047797,-460.0,0.00029036,2]
[377329175,1754349047808,-359.42791692,0.00029036,2]
[377329177,1754349047817,-460.0,0.00029036,2]
[377329179,1754349047826,-460.0,0.00029036,2]
[377329181,1754349047836,-460.0,0.00029036,2]
[377329183,1754349047846,-460.0,0.00029036,2]
[377329185,1754349047855,-386.33,0.00029036,2]
[377329187,1754349047865,-1285.38,0.00029036,2]
[377329189,1754349047877,-460.0,0.00029036,2]
[377329191,1754349047886,-5126.6,0.00029036,2]
[377329193,1754349047895,-157.82,0.00029036,2]
[377329195,1754349047905,-460.0,0.00029036,2]
[377329197,1754349047915,-460.0,0.00029036,2]
[377329199,1754349047924,-460.0,0.00029036,2]
[377329201,1754349047933,-460.0,0.00029036,2]
[377329203,1754349047943,-460.0,0.00029036,2]
[377329205,1754349047952,-151.0,0.00029036,7]
[377329207,1754349047961,-553.89,0.00029036,2]
[377329209,1754349047971,-460.0,0.00029036,2]
[377329211,1754349047980,-460.0,0.00029036,2]
[377329212,1754349047993,-460.0,0.00029036,2]
[377329214,1754349048004,-460.0,0.00029036,2]
[377329216,1754349048014,-1212.27,0.00029036,2]
[377329218,1754349048024,-460.0,0.00029036,2]
[377329220,1754349048035,-460.0,0.00029036,2]
[377329221,1754349048044,-460.0,0.00029036,2]
[377329223,1754349048054,-460.0,0.00029036,2]
[377329225,1754349048064,-460.0,0.00029036,2]
[377329227,1754349048074,-460.0,0.00029036,2]
[377329229,1754349048083,-460.0,0.00029036,2]
[377329231,1754349048093,-460.0,0.00029036,2]
[377329233,1754349048104,-460.0,0.00029036,2]
[377329235,1754349048114,-460.0,0.00029036,2]
[377329237,1754349048124,-1036.64,0.00029036,2]
[377329239,1754349048134,-460.0,0.00029037,2]
[377329250,1754349048235,-460.0,0.00029037,2]
[377329252,1754349048246,-460.0,0.00029037,2]
[377329254,1754349048256,-182.75,0.00029037,2]
[377329256,1754349048265,-460.0,0.00029037,2]
[377329257,1754349048275,-460.0,0.00029037,2]
[377329259,1754349048285,-460.0,0.00029037,2]
[377329261,1754349048295,-460.0,0.00029037,2]
[377329263,1754349048304,-460.0,0.00029037,2]
[377329265,1754349048313,-460.0,0.00029037,2]
[377329267,1754349048323,-460.0,0.00029037,2]
[377329269,1754349048332,-181.92,0.00029037,2]
[377329271,1754349048341,-460.0,0.00029037,2]
[377329273,1754349048351,-174.41688099,0.00029037,2]
[377329310,1754349048749,-460.0,0.00027666,2]
[377329312,1754349048759,-148.98493076,0.00027666,2]
[377329398,1754349060248,1083.56593352,0.00025205,2]
[377329399,1754349063696,328.80906071,0.000265,2]
[377329400,1754349314627,430.6428066,0.00029579,30]
[377329401,1754349347049,186.479491,0.00013699,2]
[377329402,1754349347099,186.479491,0.00020187,2]
[377329409,1754349374026,430.6428066,0.00029579,30]
[377329411,1754349393712,1000.0,0.00026309,2]
[377329412,1754349438070,430.6428066,0.00029579,30]
[377329414,1754349554232,430.6428066,0.00029579,30]
[377329415,1754349554654,153.0,0.00029722,30]
[377329416,1754349566638,-186.479491,0.00026676,2]
[377329417,1754349566665,-6.191509,0.00026792,2]
[377329418,1754349582793,160.2834123,0.00029722,30]
[377329419,1754349612974,160.2834123,0.00029722,30]
[377329420,1754349613917,153.0,0.00029722,30]
[377329421,1754349614291,430.6428066,0.00029579,30]
[377329422,1754349639046,168.944534,0.00026379,2]
[377329423,1754349643201,160.2834123,0.00029722,30]
[377329424,1754349674112,160.2834123,0.00029722,30]
[377329425,1754349674302,292.8695803,0.00029722,30]
[377329426,1754349674552,153.0,0.00029722,30]
[377329427,1754349674580,578.8327873,0.00029722,30]
[377329428,1754349702648,292.8695803,0.00029722,30]
[377329429,1754349703936,578.8327873,0.00029722,30]